fUST/lending_fUST_20240523
["ID","MTS","AMOUNT","RATE_DAILY","PERIOD"]
[327752601,1716431438824,-428.38425836,0.0002,2]
[327752602,1716431438836,-267.45300945,0.0002,2]
[327752625,1716431444713,-3908.42677184,0.0002,2]
[327752655,1716431446738,-12633.78697437,0.0002,2]
[327752656,1716431446747,-181.92737271,0.00020702,2]
[327752657,1716431446757,-2000.0,0.000208,2]
[327752658,1716431446766,-1155.31200374,0.0002091,2]
[327752659,1716431446775,-285.69041677,0.0002091,2]
[327752660,1716431446785,-240.41464304,0.0002091,2]
[327752661,1716431446794,-854.41610182,0.0002091,2]
[327752662,1716431446806,-315.80743605,0.0002091,2]
[327752663,1716431485895,1451.43050368,0.0001,2]
[327752664,1716431719656,1555.673534,0.00017,2]
[327752666,1716431807891,3000.0,0.000165,2]
[327752671,1716431840282,3000.0,0.000165,2]
[327752675,1716431850812,3000.0,0.000165,2]
[327752676,1716431865951,1579.05276648,0.000165,2]
[327752682,1716432037652,154.93802479,0.000165,2]
[327752684,1716432132828,119520.90543768,0.00025,60]
[327752685,1716432152479,1718.07825249,9.999e-05,2]
[327752686,1716432239038,550.9904196,9.999e-05,2]
[327752688,1716432271123,1151.84012163,9.999e-05,2]
[327752721,1716432632918,-24900.0,0.0001778,2]
[327752722,1716432632941,-167.0780174,0.00017995,2]
[327752723,1716432632964,-154.93802479,0.00018094,2]
[327752724,1716432632987,-550.9904196,0.00018095,2]
[327752725,1716432633013,-9403.91722042,0.00018096,2]
[327752726,1716432633022,-2635.84610155,0.00018097,2]
[327752727,1716432633031,-501.133258,0.00018111,2]
[327752728,1716432633040,-2105.38655213,0.00018884,2]
[327752729,1716432633051,-574.91415496,0.00018884,2]
[327752730,1716432633060,-162.61642107,0.00019,2]
[327752731,1716432633069,-89.12663774,0.00019357,2]
[327752732,1716432633081,-271.62123284,0.00019357,2]
[327752733,1716432633093,-155.51791778,0.00019385,2]
[327752734,1716432633103,-88.33350285,0.00019385,2]
[327752735,1716432633115,-576.58072311,0.00019385,2]
[327752773,1716432638663,-490.39777778,0.00019385,2]
[327752775,1716432638673,-285.69041677,0.00019385,2]
[327752778,1716432638682,-754.11207661,0.00019385,2]
[327752783,1716432638693,-600.38886798,0.00019385,2]
[327752786,1716432638703,-1150.82980019,0.00019385,2]
[327752788,1716432638712,-945.09126409,0.00019385,2]
[327752790,1716432638721,-155.02622222,0.00019385,2]
[327752793,1716432638731,-240.41464304,0.00019385,2]
[327752796,1716432638740,-155.08259674,0.00019385,2]
[327752800,1716432638751,-155.30572567,0.00019385,2]
[327752802,1716432638761,-154.95973864,0.00019385,2]
[327752806,1716432638776,-1717.16943979,0.00019386,2]
[327752808,1716432638786,-1501.05533616,0.000199,2]
[327752810,1716432638796,-3371.71964826,0.0002,2]
[327752812,1716432638809,-181.92737271,0.00020702,2]
[327752814,1716432638819,-209.80060519,0.0002091,2]
[327752816,1716432638830,-1344.80990047,0.0002091,2]
[327752819,1716432638841,-237.26526712,0.0002091,2]
[327752821,1716432638850,-721.37008705,0.0002091,2]
[327752823,1716432638860,-1460.37935967,0.0002091,2]
[327752825,1716432638870,-175.22468444,0.00020911,2]
[327752827,1716432638879,-248.17481169,0.00020911,2]
[327752829,1716432638888,-309.59955279,0.00020912,2]
[327752830,1716432638897,-21622.56076398,0.00020912,2]
[327752845,1716432639032,-3930.40895006,0.00021,2]
[327752847,1716432639042,-280.0,0.00021,2]
[327752849,1716432639052,-625.16057989,0.00021234,2]
[327752851,1716432639061,-360.74787055,0.00021243,2]
[327752853,1716432639071,-200.0,0.0002137,2]
[327752855,1716432639083,-166.666666,0.00021918,2]
[327752857,1716432639092,-155.63947904,0.00022,2]
[327752859,1716432639102,-160.3944609,0.00022,2]
[327752861,1716432639111,-1501.05533613,0.0002217,2]
[327752863,1716432639121,-620.25802899,0.00022296,2]
[327752865,1716432639131,-166.666666,0.00022431,2]
[327752867,1716432639141,-174.4,0.00022626,3]
[327752869,1716432639150,-151.0,0.00022626,3]
[327752871,1716432639159,-204.5437107,0.00022685,2]
[327752873,1716432639168,-204.5437107,0.00022685,2]
[327752874,1716432639178,-204.5437107,0.00022685,2]
[327752877,1716432639188,-203.5616105,0.00022685,2]
[327752879,1716432639198,-256.36861513,0.000229,2]
[327752880,1716432639207,-150.948,0.00022917,2]
[327752882,1716432639217,-166.666666,0.00022944,2]
[327752884,1716432639226,-360.74787055,0.00023129,2]
[327752886,1716432639236,-166.666666,0.00023456,2]
[327752888,1716432639247,-174.4,0.00023608,3]
[327752890,1716432639259,-166.666666,0.00023969,2]
[327752892,1716432639268,-188.0187702,0.00024,2]
[327752894,1716432639277,-291.5019197,0.0002411,2]
[327752896,1716432639287,-291.5019197,0.0002411,2]
[327752898,1716432639298,-291.5019197,0.0002411,2]
[327752900,1716432639307,-153.0,0.0002411,2]
[327752902,1716432639316,-153.0,0.0002411,2]
[327752904,1716432639325,-153.0,0.0002411,2]
[327752906,1716432639335,-428.22177,0.00024384,2]
[327752908,1716432639344,-153.9277743,0.00024384,2]
[327752909,1716432639353,-153.0,0.00024384,2]
[327752911,1716432639363,-153.0,0.00024384,2]
[327752913,1716432639376,-153.0,0.00024384,2]
[327752915,1716432639385,-153.0,0.00024384,2]
[327752917,1716432639395,-306.0,0.00024384,2]
[327752919,1716432639404,-295.617,0.00024412,2]
[327752921,1716432639414,-151.782,0.00024412,2]
[327752923,1716432639423,-1501.05533613,0.0002444,2]
[327752925,1716432639432,-166.666666,0.00024482,2]
[327752927,1716432639442,-174.4,0.00024589,5]
[327752929,1716432639451,-153.0,0.00024932,2]
[327752931,1716432639460,-153.0,0.00024932,2]
[327752933,1716432639469,-457.4626375,0.00024932,2]
[327752935,1716432639479,-2528.15492796,0.00025,2]
[327752937,1716432639488,-241.21190449,0.00025,2]
[327752939,1716432639501,-154.95351395,0.00025,2]
[327752941,1716432639512,-402.46192044,0.00025,2]
[327752943,1716432639525,-168.197007,0.00025,2]
[327752945,1716432639534,-764.03870001,0.00025,2]
[327752947,1716432639543,-583.57753635,0.00025,2]
[327752948,1716432639553,-360.74787055,0.00025014,2]
[327752950,1716432639563,-174.4,0.00025571,5]
[327752952,1716432639572,-150.0,0.00025917,2]
[327752954,1716432639582,-2459.7630643,0.0002599,11]
[327753212,1716432642341,-1230.87775986,0.0002599,11]
[327753214,1716432642351,-6470.95380772,0.00026,2]
[327753242,1716432642662,-1.28e-06,0.00026,2]
[327753473,1716432644798,-154.93802479,0.00020913,2]
[327753475,1716432644807,-424.72937544,0.00026,2]
[327753477,1716432644817,-204.5437107,0.00026301,2]
[327753479,1716432644826,-174.4,0.00026553,5]
[327753481,1716432644836,-527.84142733,0.000266,2]
[327753483,1716432644846,-1501.05533613,0.0002671,2]
[327753486,1716432644855,-2000.0,0.000268,4]
[327753488,1716432644864,-971.0410598,0.000268,5]
[327753680,1716432646855,-664.23575695,0.00020912,2]
[327753682,1716432646864,-1028.9589402,0.000268,5]
[327753684,1716432646874,-151.0,0.000268,2]
[327753686,1716432646883,-151.0,0.000268,2]
[327753688,1716432646893,-151.0,0.000268,2]
[327753690,1716432646902,-600.0,0.0002688,2]
[327753692,1716432646911,-300.36033671,0.000269,2]
[327753694,1716432646920,-360.74787055,0.000269,2]
[327753696,1716432646929,-118.03562598,0.000269,2]
[327753708,1716432647035,-111.15687002,0.000269,2]
[327753710,1716432647044,-151.0,0.000269,2]
[327753712,1716432647054,-151.0,0.000269,2]
[327753714,1716432647063,-151.0,0.000269,2]
[327753716,1716432647072,-151.0,0.000269,2]
[327753718,1716432647081,-151.0,0.000269,2]
[327753720,1716432647091,-151.0,0.000269,2]
[327753722,1716432647100,-151.0,0.000269,2]
[327753724,1716432647109,-151.0,0.000269,2]
[327753726,1716432647118,-1737.69,0.0002699,3]
[327753728,1716432647127,-500.0,0.00026998,120]
[327753730,1716432647136,-520.73,0.00026998,120]
[327753732,1716432647145,-500.0,0.00026998,120]
[327753734,1716432647154,-500.0,0.00026998,120]
[327753736,1716432647163,-587.56,0.00026998,120]
[327753738,1716432647172,-500.0,0.00026998,120]
[327753740,1716432647181,-500.0,0.00026998,120]
[327753742,1716432647190,-500.0,0.00026998,120]
[327753744,1716432647199,-500.0,0.00026998,120]
[327753746,1716432647208,-318.16901454,0.00026998,120]
[327753748,1716432647220,-84.28098546,0.00026998,120]
[327753750,1716432647230,-151.552129,0.00026998,2]
[327753752,1716432647239,-151.0,0.00026998,2]
[327753754,1716432647248,-151.0,0.00026998,2]
[327753756,1716432647261,-152.702348,0.00026998,2]
[327753758,1716432647270,-151.0,0.00026998,2]
[327753760,1716432647281,-151.0,0.00026998,2]
[327753762,1716432647290,-162.61642107,0.00026999,2]
[327753764,1716432647299,-14610.01903563,0.00027,2]
[327756310,1716432683223,488.03965703,9.999e-05,2]
[327756316,1716432836313,3382.13064203,9.999e-05,2]
[327756317,1716432858261,230.46710513,9.999e-05,2]
[327756318,1716432884862,138.09448235,0.0001,2]
[327756319,1716432884888,16.84354244,0.0001,2]
[327756320,1716432902795,155.10564683,0.0001,2]
[327756322,1716432986539,533.0,0.00023,30]
[327756323,1716433138935,1329.24215625,0.00025,60]
[327756324,1716433357647,550.9904196,9.999e-05,2]
[327756325,1716433393054,1718.07825249,9.999e-05,2]
[327756326,1716433473790,1151.84012163,9.999e-05,2]
[327756327,1716433630101,-4034.07924238,0.00018822,2]
[327756329,1716433651151,-550.9904196,0.00018722,2]
[327756330,1716433651171,-1718.07825249,0.00018722,2]
[327756331,1716433651191,-430.89855565,0.00018723,3]
[327756332,1716433651211,-1151.84012163,0.00018821,2]
[327756333,1716433651232,-1133.25693147,0.00018822,2]
[327756336,1716433751656,913.70275979,9.999e-05,2]
[327756367,1716433833289,-389.272256,0.00016867,2]
[327756369,1716433833299,-246.52262283,0.00017332,2]
[327756371,1716433833310,-570.87837969,0.00017332,2]
[327756373,1716433833322,-93.87134185,0.00017332,2]
[327756375,1716433833333,-59429.50731458,0.00017766,2]
[327756377,1716433833342,-9403.91722042,0.00017767,2]
[327756379,1716433833351,-906.81919676,0.00017768,2]
[327756380,1716433833363,-155.97041176,0.00017863,2]
[327756382,1716433833372,-21736.05966855,0.00017864,2]
[327756384,1716433833383,-1007.88974121,0.00017864,2]
[327756418,1716433838978,-258.89243828,0.00017864,2]
[327757194,1716433846650,-1674.79371648,0.00017863,2]
[327757526,1716433850452,-50326.07738943,0.00017863,2]
[327758568,1716434115053,835.98011764,9.999e-05,2]
[327758569,1716434123227,154.93802479,0.00015,2]
[327758570,1716434138555,154.93802479,9.999e-05,2]
[327758571,1716434152954,924.49276923,0.00015,2]
[327758572,1716434170210,410.70803407,9.999e-05,2]
[327758573,1716434173710,1339.6886208,9.999e-05,2]
[327758574,1716434175255,921.59746987,0.00014,2]
[327758575,1716434181042,187.00915617,9.999e-05,2]
[327758576,1716434184449,392.96788427,9.999e-05,2]
[327758577,1716434185161,658.48614458,9.999e-05,2]
[327758578,1716434185668,207.60123387,9.999e-05,2]
[327758579,1716434187432,2799.93940827,0.00015,2]
[327758580,1716434188019,154.93802479,9.999e-05,2]
[327758581,1716434189734,1685.22821807,0.00015,2]
[327758582,1716434190472,261.25891751,9.999e-05,2]
[327758583,1716434190818,943.19010116,0.00015,2]
[327758584,1716434197536,373.42,0.00010959,2]
[327758585,1716434206759,236.47642242,9.999e-05,2]
[327758586,1716434218238,541.88,0.00010959,2]
[327758588,1716434287320,1151.84012163,9.999e-05,2]
[327758589,1716434319166,566.71,0.0001,7]
[327758596,1716434586131,154.93802479,9.999e-05,2]
[327758598,1716434619088,157.87071419,0.0001,7]
[327758600,1716434732142,-194.636128,0.00015829,2]
[327758601,1716434732166,-926.58680817,0.00015989,2]
[327758602,1716434732191,-677.10184621,0.00016728,2]
[327758603,1716434732212,-234.6473376,0.00016826,2]
[327758604,1716434732233,-498.48451784,0.00016827,2]
[327758605,1716434732254,-59429.50731458,0.00016828,2]
[327758606,1716434732273,-31547.57061748,0.00016829,2]
[327758607,1716434732292,-215.22503843,0.0001683,2]
[327758608,1716434732312,-868.4978586,0.0001683,2]
[327758609,1716434732331,-1689.29713695,0.0001683,2]
[327758610,1716434732350,-241.14213385,0.0001683,2]
[327758611,1716434732369,-945.16955454,0.0001683,2]
[327758612,1716434732389,-154.93802479,0.00016831,2]
[327758613,1716434732409,-411.19755255,0.00016831,2]
[327758614,1716434732429,-190.39259473,0.00016831,2]
[327758615,1716434732449,-225.24451674,0.00016831,2]
[327758616,1716434732473,-155.04478637,0.00016831,2]
[327758617,1716434732491,-658.50709311,0.00016831,2]
[327758618,1716434732511,-542.97376531,0.00016832,2]
[327758619,1716434732531,-24900.0,0.00016833,2]
[327758620,1716434732554,-677.10184619,0.00016988,2]
[327758621,1716434732573,-677.10184619,0.00017249,2]
[327758622,1716434732594,-677.10184619,0.00017509,2]
[327758623,1716434732613,-305.94268991,0.00017686,2]
[327758624,1716434732632,-677.10184619,0.00017769,2]
[327758625,1716434732650,-224.10353877,0.00017863,2]
[327758626,1716434732669,-120.95914271,0.00017863,2]
[327758627,1716434831099,-1280.8631753,0.00016768,2]
[327758628,1716434831119,-194.6361286,0.00016866,2]
[327758629,1716434831140,-304.23125226,0.00016867,2]
[327758630,1716434831167,-54074.49601542,0.00016867,2]
[327758631,1716434831188,-24900.0,0.00016868,2]
[327758632,1716434831208,-52.88688461,0.00017863,2]
[327758633,1716434831231,-210.58336873,0.00017864,2]
[327758634,1716434831255,-1450.80884896,0.00017864,2]
[327758635,1716434831276,-156.51573915,0.00017864,2]
[327758636,1716434831296,-317.42286275,0.00017864,2]
[327758637,1716434831316,-155.48808748,0.00017865,2]
[327758638,1716434831341,-941.9818398,0.00017865,2]
[327758639,1716434831360,-263.67559899,0.00017865,2]
[327758640,1716434831380,-193.23352281,0.00017867,2]
[327758641,1716434831402,-6421.35051544,0.00017867,2]
[327758642,1716434831422,-158.99885359,0.00017867,2]
[327758643,1716434831444,-1149.63675721,0.00017867,2]
[327758644,1716434831467,-179.4371751,0.00017867,2]
[327758645,1716434831486,-447.8579126,0.00017867,2]
[327758646,1716434831506,-311.06188201,0.00017867,2]
[327758647,1716434831527,-1245.05688192,0.00017867,2]
[327758648,1716434831547,-285.733402,0.00017867,2]
[327758649,1716434831569,-248.67424405,0.00017867,2]
[327758650,1716434831589,-231.15046877,0.00017867,2]
[327758651,1716434831610,-720.11009845,0.00017867,2]
[327758652,1716434831630,-331.2424432,0.00017867,2]
[327758653,1716434831651,-948.3037773,0.00017867,2]
[327758654,1716434831671,-155.73211763,0.00017867,2]
[327758655,1716434831691,-774.27872381,0.00017867,2]
[327758656,1716434831709,-160.65360869,0.00017867,2]
[327758657,1716434831729,-227.42619334,0.00017867,2]
[327758658,1716434831749,-156.49059254,0.00017867,2]
[327758659,1716434831769,-264.75632936,0.00017867,2]
[327758660,1716434831790,-804.91930501,0.00017867,2]
[327758661,1716434831810,-593.34019342,0.00017867,2]
[327758662,1716434831829,-516.81504331,0.00017867,2]
[327758663,1716434831850,-687.59950096,0.00017867,2]
[327758664,1716434831869,-162.19869283,0.00017867,2]
[327758665,1716434831889,-225.08647525,0.00017867,2]
[327758666,1716434831910,-303.61939622,0.00017867,2]
[327758667,1716434831930,-155.251382,0.00017867,2]
[327758668,1716434831950,-528.58408282,0.00017867,2]
[327758669,1716434831969,-231.70060982,0.00017867,2]
[327758670,1716434831989,-209.27000577,0.00017867,2]
[327758671,1716434832010,-2409.46411037,0.00017867,2]
[327758672,1716434832030,-272.05475176,0.00017867,2]
[327758673,1716434832049,-209.61507021,0.00017867,2]
[327758674,1716434832070,-1424.904033,0.00017868,2]
[327758675,1716434832089,-151.0,0.00017869,2]
[327758676,1716434832108,-151.0,0.00017869,2]
[327758677,1716434832129,-159.906368,0.00017869,2]
[327758678,1716434832152,-159.906368,0.00017869,2]
[327758679,1716434832179,-151.0,0.00017869,2]
[327758680,1716434832199,-152.745599,0.00017869,2]
[327758681,1716434832219,-151.0,0.00017869,2]
[327758682,1716434832238,-151.0,0.00017869,2]
[327758683,1716434832263,-151.0,0.00017869,2]
[327758684,1716434832283,-178.731156,0.00017869,2]
[327758685,1716434832304,-178.731156,0.00017869,2]
[327758686,1716434832324,-151.0,0.00017869,2]
[327758687,1716434832477,-151.0,0.00017869,2]
[327758688,1716434832497,-151.0,0.00017869,2]
[327758689,1716434832518,-151.0,0.00017869,2]
[327758690,1716434832538,-192.43916,0.00017869,2]
[327758691,1716434832557,-151.0,0.00017869,2]
[327758692,1716434832578,-151.0,0.00017869,2]
[327758693,1716434832598,-151.0,0.00017869,2]
[327758694,1716434832618,-151.0,0.00017869,2]
[327758695,1716434832638,-151.0,0.00017869,2]
[327758696,1716434832660,-151.0,0.00017869,2]
[327758697,1716434832682,-151.0,0.00017869,2]
[327758698,1716434832702,-151.0,0.00017869,2]
[327758699,1716434832722,-28847.36556823,0.00017869,2]
[327758700,1716434832742,-168.91432574,0.00017869,2]
[327758701,1716434832764,-8791.59489262,0.0001787,2]
[327758702,1716434832785,-1356.14654974,0.00017898,2]
[327758703,1716434832806,-3516.5919419,0.00018,7]
[327758704,1716434832827,-987.0598285,0.00018,2]
[327758705,1716434832848,-417.48839794,0.00018539,2]
[327758706,1716434832872,-4225.76789331,0.00018624,2]
[327758707,1716434832893,-4236.404,0.00018889,2]
[327758708,1716434832916,-616.9877838,0.000189,2]
[327758709,1716434832937,-1006.98092851,0.00018988,2]
[327758710,1716434832958,-151.0,0.00018988,2]
[327758711,1716434832979,-151.0,0.00018988,2]
[327758712,1716434832999,-151.0,0.00018988,2]
[327758713,1716434833021,-152.377358,0.00018988,2]
[327758714,1716434833042,-151.0,0.00018988,2]
[327758715,1716434833064,-151.0,0.00018988,2]
[327758716,1716434833087,-151.0,0.00018988,2]
[327758717,1716434833108,-151.0,0.00018988,2]
[327758718,1716434833129,-151.0,0.00018988,2]
[327758719,1716434833152,-213.258139,0.00018988,2]
[327758720,1716434833179,-162.61642107,0.00019,2]
[327758721,1716434833199,-326.17533098,0.00019178,2]
[327758722,1716434833222,-500.0,0.00019178,2]
[327758723,1716434833243,-500.0,0.00019178,2]
[327758724,1716434833266,-500.0,0.00019178,2]
[327758725,1716434833290,-500.0,0.00019178,2]
[327758726,1716434833311,-169.01325972,0.00019178,2]
[327758727,1716434833335,-500.0,0.00019178,2]
[327758728,1716434833359,-500.0,0.00019178,2]
[327758729,1716434833383,-500.0,0.00019178,2]
[327758730,1716434833405,-441.58005771,0.00019178,2]
[327758731,1716434833426,-500.0,0.00019178,2]
[327758732,1716434833448,-500.0,0.00019178,2]
[327758733,1716434833472,-500.0,0.00019178,2]
[327758734,1716434833496,-500.0,0.00019178,2]
[327758735,1716434833518,-500.0,0.00019178,2]
[327758736,1716434833540,-500.0,0.00019178,2]
[327758737,1716434833561,-500.0,0.00019178,2]
[327758738,1716434833585,-500.0,0.00019178,2]
[327758739,1716434833607,-516.43185657,0.00019178,2]
[327758740,1716434833635,-500.0,0.00019178,2]
[327758741,1716434833659,-628.99962208,0.00019178,2]
[327758742,1716434833682,-500.0,0.00019178,2]
[327758743,1716434833703,-555.77926185,0.00019178,2]
[327758744,1716434833725,-289.56379666,0.00019178,2]
[327758745,1716434833750,-500.0,0.00019178,2]
[327758746,1716434833772,-500.0,0.00019178,2]
[327758747,1716434833794,-500.0,0.00019178,2]
[327758748,1716434833817,-500.0,0.00019178,2]
[327758749,1716434833843,-500.0,0.00019178,2]
[327758750,1716434833867,-500.0,0.00019178,2]
[327758751,1716434833889,-500.0,0.00019178,2]
[327758752,1716434833916,-500.0,0.00019178,2]
[327758753,1716434833939,-500.0,0.00019178,2]
[327758754,1716434833961,-440.56688791,0.00019178,2]
[327758755,1716434833986,-500.0,0.00019178,2]
[327758756,1716434834006,-500.0,0.00019178,2]
[327758757,1716434834027,-500.0,0.00019178,2]
[327758758,1716434834051,-500.0,0.00019178,2]
[327758759,1716434834078,-500.0,0.00019178,2]
[327758760,1716434834101,-500.0,0.00019178,2]
[327758761,1716434834123,-221.27789349,0.00019178,2]
[327758762,1716434834144,-500.0,0.00019178,2]
[327758763,1716434834177,-500.0,0.00019178,2]
[327758764,1716434834198,-500.0,0.00019178,2]
[327758765,1716434834228,-500.0,0.00019178,2]
[327758766,1716434834252,-500.0,0.00019178,2]
[327758767,1716434834280,-500.0,0.00019178,2]
[327758768,1716434834302,-500.0,0.00019178,2]
[327758769,1716434834328,-500.0,0.00019178,2]
[327758770,1716434834354,-500.0,0.00019178,2]
[327758771,1716434834380,-500.0,0.00019178,2]
[327758772,1716434834406,-500.0,0.00019178,2]
[327758773,1716434834433,-500.0,0.00019178,2]
[327758774,1716434834460,-500.0,0.00019178,2]
[327758775,1716434834486,-500.0,0.00019178,2]
[327758776,1716434834510,-500.0,0.00019178,2]
[327758777,1716434834536,-500.0,0.00019178,2]
[327758778,1716434834561,-500.0,0.00019178,2]
[327758779,1716434834587,-500.0,0.00019178,2]
[327758780,1716434834613,-448.67799302,0.00019178,2]
[327758781,1716434834639,-500.0,0.00019178,2]
[327758782,1716434834664,-500.0,0.00019178,2]
[327758783,1716434834690,-500.0,0.00019178,2]
[327758784,1716434834715,-500.0,0.00019178,2]
[327758785,1716434834738,-500.0,0.00019178,2]
[327758786,1716434834764,-1180.31068474,0.00019178,2]
[327758787,1716434834789,-1180.31068474,0.00019178,2]
[327758788,1716434834815,-1180.31068474,0.00019178,2]
[327758789,1716434834841,-1180.31068474,0.00019178,2]
[327758790,1716434834867,-1180.31068474,0.00019178,2]
[327758791,1716434835001,-1180.31068474,0.00019178,2]
[327758792,1716434835031,-1180.31068474,0.00019178,2]
[327758793,1716434835057,-1180.31068474,0.00019178,2]
[327758794,1716434835085,-1180.31068474,0.00019178,2]
[327758795,1716434835112,-1180.31068474,0.00019178,2]
[327758796,1716434835138,-1180.31068474,0.00019178,2]
[327758797,1716434835164,-1180.31068474,0.00019178,2]
[327758798,1716434835194,-1180.31068474,0.00019178,2]
[327758799,1716434835222,-1180.31068474,0.00019178,2]
[327758800,1716434835250,-1180.31068474,0.00019178,2]
[327758801,1716434835276,-1180.31068474,0.00019178,2]
[327758802,1716434835302,-1180.31068474,0.00019178,2]
[327758803,1716434835329,-1180.31068474,0.00019178,2]
[327758804,1716434835356,-1180.31068474,0.00019178,2]
[327758805,1716434835383,-1180.31068474,0.00019178,2]
[327758806,1716434835409,-1180.31068474,0.00019178,2]
[327758807,1716434835438,-1180.31068474,0.00019178,2]
[327758808,1716434835465,-1180.31068474,0.00019178,2]
[327758809,1716434835492,-1180.31068474,0.00019178,2]
[327758810,1716434835517,-1180.31068474,0.00019178,2]
[327758811,1716434835540,-478.84986663,0.00019178,2]
[327758812,1716434835563,-500.0,0.00019178,2]
[327758813,1716434835585,-500.0,0.00019178,2]
[327758814,1716434835608,-500.0,0.00019178,2]
[327758815,1716434835633,-500.0,0.00019178,2]
[327758816,1716434835658,-458.90983799,0.00019178,2]
[327758817,1716434835687,-1230.00701972,0.00019178,2]
[327758818,1716434835715,-1230.00701972,0.00019178,2]
[327758819,1716434835741,-1230.00701972,0.00019178,2]
[327758820,1716434835766,-1230.00701972,0.00019178,2]
[327758821,1716434835795,-1230.00701972,0.00019178,2]
[327758822,1716434835824,-1230.00701972,0.00019178,2]
[327758823,1716434835852,-1230.00701972,0.00019178,2]
[327758824,1716434835877,-1230.00701972,0.00019178,2]
[327758825,1716434835898,-269.837041,0.00019178,2]
[327758826,1716434835926,-1230.0070197,0.00019178,2]
[327758827,1716434835948,-151.0,0.00019178,2]
[327758828,1716434835971,-151.0,0.00019178,2]
[327758829,1716434835994,-151.0,0.00019178,2]
[327758830,1716434836017,-159.906368,0.00019178,2]
[327758831,1716434836042,-159.906368,0.00019178,2]
[327758832,1716434836067,-159.906368,0.00019178,2]
[327758833,1716434836092,-159.906368,0.00019178,2]
[327758834,1716434836116,-159.906368,0.00019178,2]
[327758835,1716434836144,-159.906368,0.00019178,2]
[327758836,1716434836171,-151.0,0.00019178,2]
[327758837,1716434836195,-151.0,0.00019178,2]
[327758838,1716434836219,-151.0,0.00019178,2]
[327758839,1716434836242,-155.943263,0.00019178,2]
[327758840,1716434836266,-151.0,0.00019178,2]
[327758841,1716434836288,-151.0,0.00019178,2]
[327758842,1716434836310,-151.0,0.00019178,2]
[327758843,1716434836332,-151.0,0.00019178,2]
[327758844,1716434836354,-153.461885,0.00019178,2]
[327758845,1716434836379,-178.731156,0.00019178,2]
[327758846,1716434836404,-178.731156,0.00019178,2]
[327758847,1716434836428,-178.731156,0.00019178,2]
[327758848,1716434836451,-178.731156,0.00019178,2]
[327758849,1716434836474,-178.731156,0.00019178,2]
[327758850,1716434836496,-178.731156,0.00019178,2]
[327758851,1716434836517,-178.731156,0.00019178,2]
[327758852,1716434836540,-178.731156,0.00019178,2]
[327758853,1716434836563,-151.0,0.00019178,2]
[327758854,1716434836586,-151.0,0.00019178,2]
[327758855,1716434836608,-151.0,0.00019178,2]
[327758856,1716434836631,-151.0,0.00019178,2]
[327758857,1716434836654,-162.435505,0.00019178,2]
[327758858,1716434836676,-278.23848,0.00019178,2]
[327758859,1716434836700,-180.432958,0.00019178,2]
[327758860,1716434836723,-151.0,0.00019178,2]
[327758861,1716434836744,-151.0,0.00019178,2]
[327758862,1716434836767,-151.0,0.00019178,2]
[327758863,1716434836788,-151.0,0.00019178,2]
[327758864,1716434836811,-151.0,0.00019178,2]
[327758865,1716434836832,-151.0,0.00019178,2]
[327758866,1716434836852,-151.0,0.00019178,2]
[327758867,1716434836872,-151.0,0.00019178,2]
[327758868,1716434836892,-151.0,0.00019178,2]
[327758869,1716434836914,-249.41587567,0.00019178,2]
[327758870,1716434836933,-151.0,0.00019178,2]
[327758871,1716434836954,-151.0,0.00019178,2]
[327758872,1716434836975,-158.1794,0.00019178,2]
[327758873,1716434836996,-151.0,0.00019178,2]
[327758874,1716434837017,-151.0,0.00019178,2]
[327758875,1716434837038,-151.0,0.00019178,2]
[327758876,1716434837058,-155.122085,0.00019178,2]
[327758877,1716434837078,-151.0,0.00019178,2]
[327758878,1716434837099,-151.0,0.00019178,2]